[Event "*** Qualifier 4: Titled Tuesday 3|2 Blitz"]
[Site "Chess.com"]
[Date "2017.04.25"]
[Round "5"]
[White "rithwik2002"]
[Black "Shivagami"]
[Result "0-1"]
[WhiteElo "1796"]
[BlackElo "1955"]
[TimeControl "180+2"]
[EndTime "14:05:51 PDT"]
[Termination "Shivagami won by resignation"]

1. d4 {[%clk 0:02:57.4]} 1... Nf6 {[%clk 0:02:57.5]} 2. c4 {[%clk 0:02:56.3]}
2... g6 {[%clk 0:02:58.3]} 3. f3 {[%clk 0:02:57]} 3... d5 {[%clk 0:02:56.8]} 4.
cxd5 {[%clk 0:02:58.9]} 4... Nxd5 {[%clk 0:02:58.4]} 5. e4 {[%clk 0:02:59.8]}
5... Nb6 {[%clk 0:02:59.7]} 6. Nc3 {[%clk 0:03:00.2]} 6... Bg7 {[%clk 0:03:00]}
7. Be3 {[%clk 0:03:01.2]} 7... e5 {[%clk 0:02:53]} 8. dxe5 {[%clk 0:02:20.1]}
8... Bxe5 {[%clk 0:02:34.5]} 9. Qxd8+ {[%clk 0:02:16.8]} 9... Kxd8 {[%clk
0:02:35.8]} 10. O-O-O+ {[%clk 0:02:17.8]} 10... Ke8 {[%clk 0:02:31.5]} 11. Nb5
{[%clk 0:02:11.9]} 11... a6 {[%clk 0:01:49.8]} 12. Bd4 {[%clk 0:01:59.7]} 12...
Bf4+ {[%clk 0:01:28.8]} 13. Kb1 {[%clk 0:01:58]} 13... Rg8 {[%clk 0:01:23.5]}
14. Ne2 {[%clk 0:01:53.5]} 14... axb5 {[%clk 0:01:19.8]} 15. Nxf4 {[%clk
0:01:49.9]} 15... N8d7 {[%clk 0:01:08.1]} 16. Bxb5 {[%clk 0:01:40.1]} 16... c6
{[%clk 0:01:03.4]} 17. Be2 {[%clk 0:01:40.3]} 17... Ra5 {[%clk 0:00:45.1]} 18.
Bc3 {[%clk 0:01:18.9]} 18... Ra4 {[%clk 0:00:40.4]} 19. b3 {[%clk 0:01:15.8]}
19... Ra8 {[%clk 0:00:38.6]} 20. Nd3 {[%clk 0:01:14.2]} 20... f6 {[%clk
0:00:14.6]} 21. f4 {[%clk 0:01:08.5]} 21... Kf7 {[%clk 0:00:13.4]} 22. Nb2
{[%clk 0:01:04.7]} 22... Re8 {[%clk 0:00:10.5]} 23. Nc4 {[%clk 0:00:59.3]} 23...
Nxc4 {[%clk 0:00:07]} 24. Bxc4+ {[%clk 0:01:01.2]} 24... Kf8 {[%clk 0:00:08.2]}
25. Rhe1 {[%clk 0:00:57.5]} 25... Nb6 {[%clk 0:00:07.8]} 26. Bb4+ {[%clk
0:00:55.9]} 26... Kg7 {[%clk 0:00:08.9]} 27. Bf1 {[%clk 0:00:45.7]} 27... Bg4
{[%clk 0:00:10.1]} 28. Rd2 {[%clk 0:00:43.9]} 28... Nd5 {[%clk 0:00:10.1]} 29.
Bd6 {[%clk 0:00:30.7]} 29... Nc3+ {[%clk 0:00:10.8]} 30. Ka1 {[%clk 0:00:28.1]}
30... Nxe4 {[%clk 0:00:11.5]} 31. Rdd1 {[%clk 0:00:25.7]} 31... Nxd6 {[%clk
0:00:12.1]} 32. Rxe8 {[%clk 0:00:25.3]} 32... Nxe8 {[%clk 0:00:14]} 33. Rd2
{[%clk 0:00:22.8]} 33... Nc7 {[%clk 0:00:14.5]} 34. h3 {[%clk 0:00:21.4]} 34...
Be6 {[%clk 0:00:14.6]} 35. Bc4 {[%clk 0:00:17.8]} 35... Nd5 {[%clk 0:00:14]} 36.
Rf2 {[%clk 0:00:11.2]} 36... b5 {[%clk 0:00:13.1]} 37. Bf1 {[%clk 0:00:10.5]}
37... Ne3 {[%clk 0:00:12.4]} 38. Bd3 {[%clk 0:00:09.3]} 38... Rd8 {[%clk
0:00:13]} 39. Bb1 {[%clk 0:00:09.4]} 39... Nd5 {[%clk 0:00:09.4]} 40. g4 {[%clk
0:00:09.6]} 40... f5 {[%clk 0:00:09.8]} 41. Re2 {[%clk 0:00:09.9]} 41... Kf7
{[%clk 0:00:09.8]} 42. gxf5 {[%clk 0:00:08.8]} 42... Bxf5 {[%clk 0:00:10]} 43.
Bxf5 {[%clk 0:00:07.7]} 43... gxf5 {[%clk 0:00:11.9]} 44. Re5 {[%clk 0:00:09.6]}
44... Kf6 {[%clk 0:00:11.4]} 45. a4 {[%clk 0:00:10.5]} 45... Nxf4 {[%clk
0:00:12.8]} 46. axb5 {[%clk 0:00:09]} 46... cxb5 {[%clk 0:00:14.7]} 47. Rxb5
{[%clk 0:00:09.6]} 47... Rd1+ {[%clk 0:00:15.8]} 48. Kb2 {[%clk 0:00:10.1]}
48... Nxh3 {[%clk 0:00:17]} 49. Rb6+ {[%clk 0:00:10.2]} 49... Kg5 {[%clk
0:00:17.5]} 50. b4 {[%clk 0:00:09]} 50... f4 {[%clk 0:00:17.1]} 51. Rb7 {[%clk
0:00:09.6]} 51... h5 {[%clk 0:00:16.5]} 52. Rg7+ {[%clk 0:00:09.5]} 52... Kf5
{[%clk 0:00:14.6]} 53. b5 {[%clk 0:00:09.6]} 53... Rd5 {[%clk 0:00:13.7]} 54.
Kc3 {[%clk 0:00:05.8]} 54... Rxb5 {[%clk 0:00:13.9]} 55. Rh7 {[%clk 0:00:06.9]}
55... Kg4 {[%clk 0:00:14.1]} 56. Rg7+ {[%clk 0:00:07.2]} 56... Rg5 {[%clk
0:00:14.3]} 57. Rxg5+ {[%clk 0:00:07.5]} 57... Kxg5 {[%clk 0:00:14]} 58. Kd2
{[%clk 0:00:09.4]} 58... Kg4 {[%clk 0:00:15.1]} 59. Ke2 {[%clk 0:00:10.1]} 59...
Kg3 {[%clk 0:00:16.3]} 60. Kf1 {[%clk 0:00:12]} 60... f3 {[%clk 0:00:16.8]} 61.
Ke1 {[%clk 0:00:10.8]} 61... Kg2 {[%clk 0:00:18.2]} 62. Kd2 {[%clk 0:00:10.9]}
62... f2 {[%clk 0:00:19.7]} 0-1

[Event "*** Qualifier 4: Titled Tuesday 3|2 Blitz"]
[Site "Chess.com"]
[Date "2017.04.25"]
[Round "5"]
[White "Rikikits"]
[Black "underdogchss"]
[Result "1/2-1/2"]
[WhiteElo "2601"]
[BlackElo "2394"]
[TimeControl "180+2"]
[EndTime "14:05:53 PDT"]
[Termination "Game drawn - insufficient material"]

1. e4 {[%clk 0:03:02]} 1... e5 {[%clk 0:02:59.5]} 2. Nf3 {[%clk 0:03:02.6]} 2...
Nc6 {[%clk 0:03:00.7]} 3. Bb5 {[%clk 0:03:03.7]} 3... a6 {[%clk 0:03:01.6]} 4.
Ba4 {[%clk 0:03:03.9]} 4... Nf6 {[%clk 0:03:02.8]} 5. O-O {[%clk 0:03:05.2]}
5... Be7 {[%clk 0:03:02.9]} 6. d3 {[%clk 0:03:06.3]} 6... b5 {[%clk 0:03:01.6]}
7. Bb3 {[%clk 0:03:07.4]} 7... d6 {[%clk 0:03:02.6]} 8. a3 {[%clk 0:03:08.8]}
8... O-O {[%clk 0:03:03.1]} 9. Nc3 {[%clk 0:03:10.1]} 9... Nb8 {[%clk
0:02:58.3]} 10. Ne2 {[%clk 0:03:10]} 10... c5 {[%clk 0:02:49.9]} 11. c3 {[%clk
0:03:11]} 11... Nc6 {[%clk 0:02:50.9]} 12. Ng3 {[%clk 0:03:12.1]} 12... Qc7
{[%clk 0:02:48]} 13. h3 {[%clk 0:03:09.1]} 13... Be6 {[%clk 0:02:29.5]} 14. Bc2
{[%clk 0:03:08.3]} 14... Rac8 {[%clk 0:02:27]} 15. Ng5 {[%clk 0:03:06.7]} 15...
Bd7 {[%clk 0:02:27.5]} 16. f4 {[%clk 0:03:08.1]} 16... h6 {[%clk 0:02:15.7]} 17.
Nf3 {[%clk 0:02:59.9]} 17... exf4 {[%clk 0:02:01.1]} 18. Bxf4 {[%clk 0:03:01.8]}
18... Ne5 {[%clk 0:02:02.2]} 19. Rc1 {[%clk 0:02:55.1]} 19... Rfe8 {[%clk
0:01:53.4]} 20. Qd2 {[%clk 0:02:38.5]} 20... Ng6 {[%clk 0:01:48.5]} 21. Be3
{[%clk 0:02:34]} 21... d5 {[%clk 0:01:45.3]} 22. e5 {[%clk 0:01:51.7]} 22...
Nxe5 {[%clk 0:01:45.5]} 23. Nxe5 {[%clk 0:01:53.6]} 23... Qxe5 {[%clk
0:01:46.6]} 24. Bf4 {[%clk 0:01:54.8]} 24... Qe6 {[%clk 0:01:47.8]} 25. Rce1
{[%clk 0:01:38.2]} 25... Qb6 {[%clk 0:01:47.2]} 26. Be5 {[%clk 0:01:37.8]} 26...
Bd8 {[%clk 0:01:39.4]} 27. d4 {[%clk 0:01:34.8]} 27... cxd4 {[%clk 0:01:36.1]}
28. Bxd4 {[%clk 0:01:36.7]} 28... Qd6 {[%clk 0:01:33.4]} 29. Nf5 {[%clk
0:01:36.2]} 29... Bxf5 {[%clk 0:01:28.5]} 30. Rxe8+ {[%clk 0:01:36.5]} 30...
Nxe8 {[%clk 0:01:28.4]} 31. Bxf5 {[%clk 0:01:38.4]} 31... Rb8 {[%clk 0:01:23.2]}
32. Re1 {[%clk 0:01:15.6]} 32... Bb6 {[%clk 0:01:09.9]} 33. Qf2 {[%clk
0:01:08.1]} 33... Bxd4 {[%clk 0:01:01.2]} 34. Qxd4 {[%clk 0:01:10]} 34... Nf6
{[%clk 0:01:02.4]} 35. Re5 {[%clk 0:01:07.6]} 35... Re8 {[%clk 0:00:40.3]} 36.
Rxe8+ {[%clk 0:01:07.9]} 36... Nxe8 {[%clk 0:00:42.2]} 37. Bd3 {[%clk
0:01:09.8]} 37... g6 {[%clk 0:00:30.5]} 38. a4 {[%clk 0:01:09.1]} 38... Nc7
{[%clk 0:00:29.7]} 39. a5 {[%clk 0:01:09.6]} 39... Ne6 {[%clk 0:00:29.1]} 40.
Qb6 {[%clk 0:01:00.8]} 40... Qg3 {[%clk 0:00:25.5]} 41. Bf1 {[%clk 0:00:53.2]}
41... Nf4 {[%clk 0:00:22.6]} 42. Kh1 {[%clk 0:00:48.2]} 42... Kg7 {[%clk
0:00:19.4]} 43. Qd4+ {[%clk 0:00:44.1]} 43... Kg8 {[%clk 0:00:18.9]} 44. Qd1
{[%clk 0:00:36.4]} 44... h5 {[%clk 0:00:19.4]} 45. Qf3 {[%clk 0:00:37.1]} 45...
Qxf3 {[%clk 0:00:17.7]} 46. gxf3 {[%clk 0:00:39]} 46... Ne6 {[%clk 0:00:16.5]}
47. Kg2 {[%clk 0:00:37.3]} 47... Kf8 {[%clk 0:00:17.5]} 48. Kf2 {[%clk
0:00:38.5]} 48... Ke7 {[%clk 0:00:18.3]} 49. Ke3 {[%clk 0:00:39.3]} 49... Kd6
{[%clk 0:00:19.6]} 50. f4 {[%clk 0:00:37]} 50... Kc5 {[%clk 0:00:18]} 51. b4+
{[%clk 0:00:37.2]} 51... Kd6 {[%clk 0:00:19]} 52. h4 {[%clk 0:00:30.3]} 52...
Kc6 {[%clk 0:00:14.2]} 53. Bh3 {[%clk 0:00:29.3]} 53... Kd6 {[%clk 0:00:13.7]}
54. f5 {[%clk 0:00:28.9]} 54... Ng7 {[%clk 0:00:12.4]} 55. fxg6 {[%clk
0:00:27.7]} 55... fxg6 {[%clk 0:00:13.6]} 56. Bc8 {[%clk 0:00:28.6]} 56... Nf5+
{[%clk 0:00:11.9]} 57. Kf4 {[%clk 0:00:29.2]} 57... Nxh4 {[%clk 0:00:12]} 58.
Bxa6 {[%clk 0:00:30.8]} 58... Kc6 {[%clk 0:00:11]} 59. Bc8 {[%clk 0:00:29.7]}
59... g5+ {[%clk 0:00:11.9]} 60. Kxg5 {[%clk 0:00:29.2]} 60... Nf3+ {[%clk
0:00:12.8]} 61. Kxh5 {[%clk 0:00:29.9]} 61... d4 {[%clk 0:00:11.8]} 62. cxd4
{[%clk 0:00:12.4]} 62... Nxd4 {[%clk 0:00:12.1]} 63. Kg5 {[%clk 0:00:10.7]}
63... Nc2 {[%clk 0:00:12.3]} 64. a6 {[%clk 0:00:08.8]} 64... Kb6 {[%clk
0:00:12]} 65. Bd7 {[%clk 0:00:08.4]} 65... Nxb4 {[%clk 0:00:12.8]} 66. Bxb5
{[%clk 0:00:09.4]} 66... Nxa6 {[%clk 0:00:13.7]} 67. Bxa6 {[%clk 0:00:09.6]}
1/2-1/2

[Event "*** Qualifier 4: Titled Tuesday 3|2 Blitz"]
[Site "Chess.com"]
[Date "2017.04.25"]
[Round "5"]
[White "pastouche06"]
[Black "popov_m"]
[Result "1-0"]
[WhiteElo "2334"]
[BlackElo "2400"]
[TimeControl "180+2"]
[EndTime "14:06:12 PDT"]
[Termination "pastouche06 won by resignation"]

1. c4 {[%clk 0:03:02]} 1... Nf6 {[%clk 0:02:59.2]} 2. Nc3 {[%clk 0:02:59.5]}
2... g6 {[%clk 0:03:00.3]} 3. d4 {[%clk 0:02:58.5]} 3... Bg7 {[%clk 0:03:00.9]}
4. e4 {[%clk 0:02:58.9]} 4... d6 {[%clk 0:03:02.1]} 5. f3 {[%clk 0:02:59.9]}
5... O-O {[%clk 0:03:02.9]} 6. Nge2 {[%clk 0:03:01.4]} 6... Nc6 {[%clk
0:02:53.2]} 7. Be3 {[%clk 0:03:01.9]} 7... a6 {[%clk 0:02:53.7]} 8. Qd2 {[%clk
0:03:03]} 8... Na5 {[%clk 0:02:55.1]} 9. Nc1 {[%clk 0:03:01.5]} 9... Nd7 {[%clk
0:02:46.7]} 10. Nb3 {[%clk 0:02:53.3]} 10... c5 {[%clk 0:02:32.7]} 11. dxc5
{[%clk 0:02:31.8]} 11... Nxb3 {[%clk 0:02:27.5]} 12. axb3 {[%clk 0:02:33.7]}
12... Nxc5 {[%clk 0:02:29.2]} 13. Ra3 {[%clk 0:02:35.1]} 13... Rb8 {[%clk
0:01:48.1]} 14. Be2 {[%clk 0:02:10.4]} 14... b5 {[%clk 0:01:48.3]} 15. cxb5
{[%clk 0:02:10]} 15... axb5 {[%clk 0:01:48.8]} 16. b4 {[%clk 0:02:11.4]} 16...
Ne6 {[%clk 0:01:28.1]} 17. O-O {[%clk 0:02:03.8]} 17... Bd7 {[%clk 0:01:25.4]}
18. Ra7 {[%clk 0:01:52.3]} 18... Bc6 {[%clk 0:01:17.5]} 19. Rfa1 {[%clk
0:01:51.9]} 19... f5 {[%clk 0:01:06.3]} 20. exf5 {[%clk 0:01:48.6]} 20... Rxf5
{[%clk 0:01:01.8]} 21. f4 {[%clk 0:01:30.9]} 21... Qf8 {[%clk 0:00:54.4]} 22.
Bg4 {[%clk 0:01:29.2]} 22... Re8 {[%clk 0:00:23.2]} 23. R1a6 {[%clk 0:01:07.2]}
23... Bxc3 {[%clk 0:00:12.4]} 24. bxc3 {[%clk 0:01:05.3]} 24... Be4 {[%clk
0:00:11.6]} 25. Bxf5 {[%clk 0:00:55.6]} 25... Qxf5 {[%clk 0:00:13.5]} 26. Ra1
{[%clk 0:00:42.8]} 26... d5 {[%clk 0:00:09.1]} 27. Ra8 {[%clk 0:00:36.8]} 27...
Rxa8 {[%clk 0:00:09.5]} 28. Rxa8+ {[%clk 0:00:38.7]} 28... Kg7 {[%clk
0:00:10.7]} 29. Bd4+ {[%clk 0:00:35.3]} 29... Kf7 {[%clk 0:00:08.3]} 30. Be5
{[%clk 0:00:36.2]} 30... Qg4 {[%clk 0:00:06.4]} 31. Ra1 {[%clk 0:00:35]} 31...
h5 {[%clk 0:00:07.1]} 32. Qf2 {[%clk 0:00:25.9]} 32... h4 {[%clk 0:00:07]} 33.
h3 {[%clk 0:00:20.9]} 33... Qh5 {[%clk 0:00:08.3]} 34. Re1 {[%clk 0:00:22.4]}
34... Nf8 {[%clk 0:00:06]} 35. Qe2 {[%clk 0:00:23.1]} 35... Qxe2 {[%clk
0:00:05]} 36. Rxe2 {[%clk 0:00:25]} 36... Nd7 {[%clk 0:00:05.4]} 37. Bd4 {[%clk
0:00:24.4]} 37... Ke6 {[%clk 0:00:06.1]} 38. Kf2 {[%clk 0:00:25]} 38... Kf5
{[%clk 0:00:07.2]} 39. Ke3 {[%clk 0:00:26.2]} 39... Nf8 {[%clk 0:00:03.6]} 40.
Ra2 {[%clk 0:00:24.6]} 40... Ne6 {[%clk 0:00:04.9]} 41. Be5 {[%clk 0:00:20]}
41... g5 {[%clk 0:00:05.8]} 42. Rf2 {[%clk 0:00:20.9]} 42... g4 {[%clk
0:00:05.9]} 43. hxg4+ {[%clk 0:00:17.4]} 43... Kxg4 {[%clk 0:00:07.8]} 44. Ra2
{[%clk 0:00:19]} 44... Kf5 {[%clk 0:00:07.5]} 45. Ra5 {[%clk 0:00:19.3]} 45...
Bxg2 {[%clk 0:00:08.6]} 46. Rxb5 {[%clk 0:00:20.1]} 46... h3 {[%clk 0:00:09.1]}
47. Kf2 {[%clk 0:00:21.5]} 47... Kg4 {[%clk 0:00:07.1]} 48. Rb6 {[%clk
0:00:20.8]} 48... Kf5 {[%clk 0:00:07.9]} 49. b5 {[%clk 0:00:21.2]} 49... Be4
{[%clk 0:00:08.5]} 50. Kg3 {[%clk 0:00:21.9]} 50... Bg2 {[%clk 0:00:07.1]} 51.
Ra6 {[%clk 0:00:20.5]} 51... Nc5 {[%clk 0:00:08.2]} 52. Ra1 {[%clk 0:00:19.6]}
52... Ne4+ {[%clk 0:00:09.5]} 53. Kh2 {[%clk 0:00:20.9]} 53... Nd2 {[%clk
0:00:09.3]} 54. b6 {[%clk 0:00:21.6]} 54... Kg4 {[%clk 0:00:10.8]} 55. Kg1
{[%clk 0:00:08]} 55... Kg3 {[%clk 0:00:11.8]} 56. f5+ {[%clk 0:00:08.8]} 56...
Kg4 {[%clk 0:00:13.4]} 57. Kf2 {[%clk 0:00:08.9]} 57... Ne4+ {[%clk 0:00:09.5]}
58. Ke3 {[%clk 0:00:09.5]} 58... Nc5 {[%clk 0:00:10.9]} 59. Kd4 {[%clk
0:00:10.1]} 59... Nd7 {[%clk 0:00:09.2]} 60. b7 {[%clk 0:00:10]} 60... Kxf5
{[%clk 0:00:08.8]} 61. b8=Q {[%clk 0:00:08]} 61... Nxb8 {[%clk 0:00:10.1]} 62.
Bxb8 {[%clk 0:00:09.9]} 62... Kg4 {[%clk 0:00:10.5]} 63. Re1 {[%clk 0:00:09.8]}
63... Be4 {[%clk 0:00:10]} 64. Rxe4+ {[%clk 0:00:09.1]} 64... dxe4 {[%clk
0:00:11.4]} 65. Kxe4 {[%clk 0:00:10.3]} 65... Kg5 {[%clk 0:00:12.5]} 66. Be5
{[%clk 0:00:09.6]} 66... Kg6 {[%clk 0:00:13]} 67. c4 {[%clk 0:00:10.7]} 67...
Kf7 {[%clk 0:00:14.5]} 68. Kd5 {[%clk 0:00:12.1]} 68... Ke8 {[%clk 0:00:15.6]}
69. Kc6 {[%clk 0:00:13.3]} 69... Kd8 {[%clk 0:00:16.9]} 70. Kb7 {[%clk
0:00:13.6]} 1-0

[Event "*** Qualifier 4: Titled Tuesday 3|2 Blitz"]
[Site "Chess.com"]
[Date "2017.04.25"]
[Round "5"]
[White "Lawliet64"]
[Black "FearlessKing64"]
[Result "1-0"]
[WhiteElo "1652"]
[BlackElo "2078"]
[TimeControl "180+2"]
[EndTime "14:07:24 PDT"]
[Termination "Lawliet64 won by resignation"]

1. e4 {[%clk 0:02:56]} 1... c5 {[%clk 0:02:58.1]} 2. Nc3 {[%clk 0:02:54.6]} 2...
d6 {[%clk 0:02:58.5]} 3. Bc4 {[%clk 0:02:54.3]} 3... Nf6 {[%clk 0:02:57.8]} 4.
d3 {[%clk 0:02:55.1]} 4... e6 {[%clk 0:02:58.2]} 5. f4 {[%clk 0:02:55.7]} 5...
d5 {[%clk 0:02:59.4]} 6. Bb3 {[%clk 0:02:55.8]} 6... c4 {[%clk 0:02:57.9]} 7.
dxc4 {[%clk 0:02:54.8]} 7... dxe4 {[%clk 0:02:57.5]} 8. Qxd8+ {[%clk 0:02:54.3]}
8... Kxd8 {[%clk 0:02:59.4]} 9. Nge2 {[%clk 0:02:54.7]} 9... Bb4 {[%clk
0:03:00]} 10. Be3 {[%clk 0:02:55.1]} 10... Nc6 {[%clk 0:02:58.5]} 11. O-O-O+
{[%clk 0:02:56.1]} 11... Bd7 {[%clk 0:02:51.6]} 12. Nb5 {[%clk 0:02:53.3]} 12...
Ng4 {[%clk 0:02:32.4]} 13. Bg1 {[%clk 0:02:48.7]} 13... e3 {[%clk 0:02:33.4]}
14. h3 {[%clk 0:02:49.9]} 14... Bd2+ {[%clk 0:02:26.4]} 15. Kb1 {[%clk
0:02:48.4]} 15... Nf6 {[%clk 0:02:27.5]} 16. Nd6 {[%clk 0:02:46.2]} 16... Ke7
{[%clk 0:02:24.9]} 17. Nxb7 {[%clk 0:02:46.3]} 17... Ne4 {[%clk 0:02:13.6]} 18.
c5 {[%clk 0:02:41]} 18... Rab8 {[%clk 0:02:09.8]} 19. Nd6 {[%clk 0:02:41.6]}
19... Nxd6 {[%clk 0:02:06.9]} 20. cxd6+ {[%clk 0:02:42]} 20... Kf6 {[%clk
0:02:00]} 21. g4 {[%clk 0:02:41.3]} 21... Na5 {[%clk 0:01:50.4]} 22. h4 {[%clk
0:02:41.2]} 22... g6 {[%clk 0:01:46.8]} 23. Rh3 {[%clk 0:02:40.9]} 23... Bb5
{[%clk 0:01:41.7]} 24. Nd4 {[%clk 0:02:34.7]} 24... Nxb3 {[%clk 0:01:26.2]} 25.
axb3 {[%clk 0:02:32.6]} 25... Rhd8 {[%clk 0:01:22.1]} 26. Bxe3 {[%clk
0:02:25.6]} 26... Bxe3 {[%clk 0:01:21.3]} 27. Rxe3 {[%clk 0:02:22.8]} 27... Rxd6
{[%clk 0:01:22.5]} 28. c4 {[%clk 0:01:38.1]} 28... Rbd8 {[%clk 0:01:21]} 29.
Red3 {[%clk 0:01:28.3]} 29... Bc6 {[%clk 0:01:21.3]} 30. g5+ {[%clk 0:01:29.1]}
30... Kg7 {[%clk 0:01:14.2]} 31. Nf5+ {[%clk 0:01:23.5]} 31... gxf5 {[%clk
0:01:10]} 32. Rxd6 {[%clk 0:01:24.4]} 32... Be4+ {[%clk 0:01:09.9]} 33. Ka2
{[%clk 0:01:24.1]} 33... Rb8 {[%clk 0:01:09.8]} 34. Ra6 {[%clk 0:01:06.5]} 34...
Bc2 {[%clk 0:01:07.4]} 35. Rd7 {[%clk 0:01:01.9]} 35... Bxb3+ {[%clk 0:01:07]}
36. Ka3 {[%clk 0:01:03.1]} 36... Bxc4 {[%clk 0:01:06.2]} 37. Raxa7 {[%clk
0:01:03.3]} 37... e5 {[%clk 0:00:55.7]} 38. fxe5 {[%clk 0:01:02]} 38... Rb3+
{[%clk 0:00:56.6]} 39. Ka4 {[%clk 0:01:02.4]} 39... Rxb2 {[%clk 0:00:56.3]} 40.
h5 {[%clk 0:00:56.4]} 40... f4 {[%clk 0:00:52.7]} 41. Rd4 {[%clk 0:00:48.1]}
41... Be6 {[%clk 0:00:50]} 42. Rc7 {[%clk 0:00:34.3]} 42... f3 {[%clk
0:00:50.8]} 43. Rf4 {[%clk 0:00:32.1]} 43... f2 {[%clk 0:00:45.1]} 44. Rf6
{[%clk 0:00:33.4]} 44... Ra2+ {[%clk 0:00:27]} 45. Kb4 {[%clk 0:00:33.5]} 45...
Rb2+ {[%clk 0:00:27.4]} 46. Kc3 {[%clk 0:00:33.9]} 46... Re2 {[%clk 0:00:23.2]}
47. Kd4 {[%clk 0:00:28.6]} 47... Rd2+ {[%clk 0:00:21.4]} 48. Ke3 {[%clk
0:00:28.4]} 48... Ra2 {[%clk 0:00:19.4]} 49. h6+ {[%clk 0:00:23.8]} 49... Kf8
{[%clk 0:00:17.1]} 50. Rxf2 {[%clk 0:00:23.9]} 50... Ra3+ {[%clk 0:00:16.2]} 51.
Kd4 {[%clk 0:00:21]} 51... Ra4+ {[%clk 0:00:17.1]} 52. Kc5 {[%clk 0:00:20.6]}
52... Rg4 {[%clk 0:00:17.7]} 53. Rb2 {[%clk 0:00:12]} 53... Rc4+ {[%clk
0:00:11.4]} 54. Kd6 {[%clk 0:00:12.9]} 54... Rxc7 {[%clk 0:00:12.3]} 55. Kxc7
{[%clk 0:00:13.2]} 55... Ke7 {[%clk 0:00:14.2]} 56. Rb8 {[%clk 0:00:12.2]} 56...
Bf5 {[%clk 0:00:13.4]} 57. Rb6 {[%clk 0:00:12.3]} 57... Bd7 {[%clk 0:00:11.5]}
58. Rf6 {[%clk 0:00:11.9]} 58... Be6 {[%clk 0:00:10.7]} 59. Kc6 {[%clk
0:00:10.2]} 59... Bc4 {[%clk 0:00:11.9]} 60. Kc5 {[%clk 0:00:11]} 60... Be6
{[%clk 0:00:12.8]} 61. Kc6 {[%clk 0:00:10.2]} 61... Bd7+ {[%clk 0:00:12.3]} 62.
Kc7 {[%clk 0:00:09.7]} 62... Be6 {[%clk 0:00:13.6]} 63. Rf4 {[%clk 0:00:07.5]}
63... Bd5 {[%clk 0:00:12]} 64. Rf6 {[%clk 0:00:06.1]} 64... Be6 {[%clk
0:00:12.9]} 65. g6 {[%clk 0:00:05.4]} 65... fxg6 {[%clk 0:00:11.8]} 66. Rxg6
{[%clk 0:00:06.6]} 66... Bf5 {[%clk 0:00:07.5]} 67. Rf6 {[%clk 0:00:07.6]} 67...
Be4 {[%clk 0:00:07.6]} 68. Kb6 {[%clk 0:00:07.4]} 68... Bd3 {[%clk 0:00:07.4]}
69. Kc5 {[%clk 0:00:07.7]} 69... Bc2 {[%clk 0:00:08.5]} 70. Kd4 {[%clk
0:00:08.3]} 70... Bb1 {[%clk 0:00:10]} 71. Ke3 {[%clk 0:00:09.5]} 71... Bc2
{[%clk 0:00:11.4]} 72. Kf4 {[%clk 0:00:10.7]} 72... Bd3 {[%clk 0:00:12.8]} 73.
Rb6 {[%clk 0:00:10.2]} 73... Bc2 {[%clk 0:00:12.4]} 74. Rc6 {[%clk 0:00:10.3]}
74... Bd3 {[%clk 0:00:13.2]} 75. Rd6 {[%clk 0:00:10.1]} 75... Bc2 {[%clk
0:00:13.9]} 76. Kg5 {[%clk 0:00:10.8]} 76... Bb1 {[%clk 0:00:13.6]} 77. Rd1
{[%clk 0:00:10.9]} 77... Bc2 {[%clk 0:00:14.8]} 78. Rc1 {[%clk 0:00:11.9]} 78...
Bd3 {[%clk 0:00:16.2]} 79. Rc3 {[%clk 0:00:12.2]} 79... Bb1 {[%clk 0:00:15.4]}
80. Rc6 {[%clk 0:00:12.8]} 80... Be4 {[%clk 0:00:14.1]} 81. Rd6 {[%clk 0:00:13]}
81... Bc2 {[%clk 0:00:14.2]} 82. Kf4 {[%clk 0:00:13.7]} 82... Bb1 {[%clk
0:00:15.3]} 83. Rf6 {[%clk 0:00:14.5]} 83... Bc2 {[%clk 0:00:16.1]} 84. Ke3
{[%clk 0:00:15.6]} 84... Bb1 {[%clk 0:00:16.8]} 85. Kd2 {[%clk 0:00:16.3]} 85...
Be4 {[%clk 0:00:17.6]} 86. Rf4 {[%clk 0:00:17.3]} 86... Bg6 {[%clk 0:00:17.4]}
87. Rf6 {[%clk 0:00:18.3]} 87... Bb1 {[%clk 0:00:18.3]} 88. Kc3 {[%clk
0:00:19.3]} 88... Be4 {[%clk 0:00:18.8]} 89. Kd4 {[%clk 0:00:20.2]} 89... Bb1
{[%clk 0:00:19.9]} 90. Kd5 {[%clk 0:00:21.1]} 90... Ba2+ {[%clk 0:00:19.7]} 91.
Kc5 {[%clk 0:00:21.9]} 91... Bb1 {[%clk 0:00:21.1]} 92. Rb6 {[%clk 0:00:21.6]}
92... Bc2 {[%clk 0:00:21.9]} 93. Kd5 {[%clk 0:00:21.6]} 93... Bf5 {[%clk
0:00:20.1]} 94. Rb7+ {[%clk 0:00:21.4]} 94... Ke8 {[%clk 0:00:18.5]} 95. Kd6
{[%clk 0:00:17.2]} 1-0

[Event "*** Qualifier 4: Titled Tuesday 3|2 Blitz"]
[Site "Chess.com"]
[Date "2017.04.25"]
[Round "6"]
[White "ruvat"]
[Black "cailinchetty"]
[Result "1-0"]
[WhiteElo "2228"]
[BlackElo "1939"]
[TimeControl "180+2"]
[EndTime "14:09:36 PDT"]
[Termination "ruvat won by resignation"]

1. d4 {[%clk 0:03:00.5]} 1... Nf6 {[%clk 0:02:54]} 2. c4 {[%clk 0:03:01.2]} 2...
g6 {[%clk 0:02:55.4]} 3. Nf3 {[%clk 0:03:02.1]} 3... Bg7 {[%clk 0:02:56.9]} 4.
g3 {[%clk 0:03:03.6]} 4... d6 {[%clk 0:02:58.3]} 5. Bg2 {[%clk 0:03:04.9]} 5...
O-O {[%clk 0:02:59.9]} 6. O-O {[%clk 0:03:06.5]} 6... c6 {[%clk 0:02:59.9]} 7.
Nc3 {[%clk 0:03:07.5]} 7... Nbd7 {[%clk 0:03:01.4]} 8. e4 {[%clk 0:03:08.6]}
8... e5 {[%clk 0:03:02.8]} 9. h3 {[%clk 0:03:09.8]} 9... exd4 {[%clk 0:02:58]}
10. Nxd4 {[%clk 0:03:11.7]} 10... Nc5 {[%clk 0:02:58.9]} 11. Qc2 {[%clk
0:03:10.5]} 11... Re8 {[%clk 0:02:59.2]} 12. Be3 {[%clk 0:03:09.7]} 12... Qe7
{[%clk 0:02:53.5]} 13. Rfe1 {[%clk 0:03:06.8]} 13... Nfxe4 {[%clk 0:02:37.8]}
14. Nxe4 {[%clk 0:03:06.1]} 14... Nxe4 {[%clk 0:02:37.4]} 15. Bxe4 {[%clk
0:03:07]} 15... Qxe4 {[%clk 0:02:37.5]} 16. Bd2 {[%clk 0:03:07.8]} 16... Bxd4
{[%clk 0:02:23.9]} 1-0

[Event "*** Qualifier 4: Titled Tuesday 3|2 Blitz"]
[Site "Chess.com"]
[Date "2017.04.25"]
[Round "6"]
[White "GMBenjaminBok"]
[Black "dhanushbharadwaj"]
[Result "1-0"]
[WhiteElo "2630"]
[BlackElo "2455"]
[TimeControl "180+2"]
[EndTime "14:11:16 PDT"]
[Termination "GMBenjaminBok won by resignation"]

1. Nf3 {[%clk 0:03:02]} 1... Nf6 {[%clk 0:02:54]} 2. g3 {[%clk 0:03:03.1]} 2...
g6 {[%clk 0:02:54.1]} 3. Bg2 {[%clk 0:03:04.6]} 3... Bg7 {[%clk 0:02:53.9]} 4.
c4 {[%clk 0:03:06.3]} 4... O-O {[%clk 0:02:52.1]} 5. Nc3 {[%clk 0:03:07.2]} 5...
d6 {[%clk 0:02:49.8]} 6. d4 {[%clk 0:03:07.7]} 6... Nbd7 {[%clk 0:02:50]} 7. O-O
{[%clk 0:03:08.9]} 7... e5 {[%clk 0:02:49.8]} 8. e4 {[%clk 0:03:10.4]} 8... c6
{[%clk 0:02:49.4]} 9. Be3 {[%clk 0:03:10.3]} 9... Ng4 {[%clk 0:02:48.9]} 10. Bg5
{[%clk 0:03:10.3]} 10... Qb6 {[%clk 0:02:31.7]} 11. h3 {[%clk 0:03:10.2]} 11...
Ngf6 {[%clk 0:02:25.1]} 12. b3 {[%clk 0:02:12.6]} 12... exd4 {[%clk 0:02:22.4]}
13. Nxd4 {[%clk 0:02:13.5]} 13... Nxe4 {[%clk 0:02:18.8]} 14. Nxe4 {[%clk
0:02:13.8]} 14... Qxd4 {[%clk 0:02:18.9]} 15. Qxd4 {[%clk 0:02:13.2]} 15... Bxd4
{[%clk 0:02:20.4]} 16. Rad1 {[%clk 0:02:14.8]} 16... c5 {[%clk 0:02:04]} 17.
Nxd6 {[%clk 0:02:12.8]} 17... f6 {[%clk 0:02:05.3]} 18. Bh6 {[%clk 0:02:11.9]}
18... Rd8 {[%clk 0:02:02.5]} 19. Bd5+ {[%clk 0:02:12.7]} 1-0